bitfinex-derivatives/quotes_ETHF0:USTF0_20250620
["timestamp","ask_amount","ask_price","bid_price","bid_amount"]
[1750431954214,9.83781323,2498.3,2498.2,0.80051]
[1750431954419,9.03734323,2498.3,2498.2,0.80051]
[1750431954720,0.80052,2498.2,2498.1,0.80053]
[1750431954926,1.21034323,2498.2,2498.1,0.80053]
[1750431955421,2.01085323,2498.2,2498.1,0.80053]
[1750431955620,0.80054,2498.1,2498.0,3.2078]
[1750431955829,1.21034323,2498.1,2498.0,4.00837]
[1750431956420,2.01088323,2498.1,2498.0,3.2078]
[1750431956621,0.80054,2498.1,2498.0,4.00837]
[1750431956821,2.01260085,2498.1,2498.0,4.00837]
[1750431957221,1.21206085,2498.1,2498.0,4.00837]
[1750431958118,0.80048,2498.3,2498.2,0.80051]
[1750431958321,1.21211407,2498.3,2498.1,2.11572]
[1750431958514,7.827,2498.4,2498.1,2.11572]
[1750431958515,1.21211407,2498.2,2498.1,2.11572]
[1750431958727,3.2078,2498.5,2498.1,2.00134]
[1750431958918,1.21232103,2498.4,2498.3,0.80047]
[1750431959619,2.01279103,2498.4,2498.2,0.80048]
[1750431959825,1.21232103,2498.3,2498.1,0.80052]
[1750431960022,0.80049,2498.3,2498.2,0.80051]
[1750431960219,1.21109131,2498.3,2498.2,0.80051]
[1750431960419,28.11309131,2498.3,2498.2,0.80051]
[1750431960629,1.21109131,2498.3,2498.2,0.80051]
[1750431961126,11.0348,2498.7,2498.2,0.80051]
[1750431961127,7.827,2498.7,2498.6,0.80038]
[1750431961327,9.03922839,2498.7,2498.6,0.80038]
[1750431961826,0.80038,2498.6,2498.5,0.80039]
[1750431962028,0.80041,2498.5,2498.4,0.80043]
[1750431962218,1.21222839,2498.5,2498.1,3.2078]
[1750431962423,2.01267839,2498.4,2498.3,0.80046]
[1750431962731,1.21222839,2498.4,2498.3,0.80046]
[1750431963326,2.3060281,2498.9,2498.3,5.0]
[1750431963527,2.3060281,2499.2,2498.9,2.00071]
[1750431963728,2.3060281,2499.2,2498.8,2.00078]
[1750431963729,37.0240281,2499.4,2499.3,0.80015]
[1750431963942,34.718,2499.6,2499.5,0.80009]
[1750431964622,0.80009,2499.5,2499.4,0.8001]
[1750431964822,49.46611124,2499.6,2499.2,0.80019]
[1750431965023,9.54013124,2499.3,2499.0,3.2078]
[1750431965222,34.668,2499.4,2499.0,3.2078]
[1750431965420,34.668,2499.4,2499.3,0.80015]
[1750431965623,3.1061081,2499.6,2499.1,2.00055]
[1750431965823,0.8001,2499.5,2499.4,0.80011]
[1750431966019,34.667,2499.6,2499.0,5.20841]
[1750431966218,34.667,2499.6,2499.5,0.80009]
[1750431966424,0.80009,2499.5,2499.1,2.00054]
[1750431966625,37.8718,2499.6,2499.2,2.00047]
[1750431966821,34.664,2499.6,2499.5,0.80009]
[1750431967022,3.1060481,2499.8,2499.7,0.80003]
[1750431967232,7.78,2499.8,2499.7,0.80003]
[1750431967421,7.78,2499.8,2499.3,5.20818]
[1750431967422,34.659,2499.8,2499.5,0.80007]
[1750431967633,0.80006,2499.6,2499.5,0.80007]
[1750431967933,0.80012,2499.4,2499.3,3.2078]
[1750431968123,0.80011,2499.5,2499.3,3.2078]
[1750431968321,9.54013124,2499.7,2499.3,3.2078]
[1750431968527,9.54013124,2499.4,2498.7,0.6818]
[1750431968728,2.00015,2499.6,2498.2,0.80051]
[1750431968729,12.74793124,2498.8,2498.2,0.80051]
[1750431968922,26.875,2498.7,2498.5,0.80039]
[1750431969129,27.67536,2498.7,2498.2,0.80051]
[1750431969329,27.67536,2498.7,2498.6,0.80038]
[1750431969525,26.875,2498.7,2498.6,0.80038]
[1750431969721,26.875,2498.7,2498.4,3.2078]
[1750431969929,26.875,2498.7,2498.6,0.80038]
[1750431970125,27.67535,2498.7,2498.6,0.80038]
[1750431970722,26.875,2498.7,2498.4,3.2078]
[1750431970926,26.875,2498.7,2498.6,0.80038]
[1750431971927,26.875,2498.7,2498.4,3.2078]
[1750431971928,36.41513124,2498.7,2498.4,3.2078]
[1750431972134,0.80039,2498.6,2498.5,0.8004]
[1750431972333,0.80038,2498.6,2498.4,3.2078]
[1750431972532,0.80038,2498.6,2498.5,0.80039]
[1750431972734,28.2287,2498.7,2498.4,3.2078]
[1750431972735,0.80041,2498.5,2498.4,4.00822]
[1750431973032,0.8004,2498.6,2498.5,0.80041]
[1750431973528,26.875,2498.7,2498.4,3.2078]
[1750431973834,0.80041,2498.5,2498.4,3.2078]
[1750431974032,27.67537,2498.7,2498.6,0.80038]
[1750431974241,26.875,2498.7,2498.4,3.2078]
[1750431974531,0.80041,2498.6,2498.5,0.80041]
[1750431974827,0.80041,2498.6,2498.5,0.8004]
[1750431975127,9.54013124,2498.6,2498.0,5.2358]
[1750431975329,9.78081,2498.8,2498.3,3.2078]
[1750431975330,34.639,2498.5,2498.3,3.2078]
[1750431975530,10.34046124,2498.8,2498.7,0.80035]
[1750431975726,0.80032,2498.8,2498.7,0.80031]
[1750431975930,0.80035,2498.7,2498.6,0.80036]
[1750431976137,0.80039,2498.6,2498.5,0.80039]
[1750431976339,0.80031,2498.8,2498.7,0.80032]
[1750431976831,9.54013124,2499.1,2498.4,1.3898]
[1750431977037,35.43526,2499.0,2498.9,0.80026]
[1750431977531,0.80031,2498.9,2498.8,0.80029]
[1750431977932,46.17577124,2499.0,2498.6,3.2078]
[1750431978134,0.8003,2498.9,2498.8,0.80029]
[1750431978329,0.80029,2499.0,2498.9,0.80028]
[1750431978533,35.43129,2499.0,2498.9,0.80028]
[1750431978729,35.43129,2499.0,2498.6,5.27994]
[1750431978730,0.80035,2498.7,2498.6,5.27994]
[1750431978925,0.80035,2498.8,2498.6,3.2078]
[1750431979127,12.74793124,2498.7,2498.3,3.2078]
[1750431979335,0.80054,2498.2,2498.1,0.80052]
[1750431979526,0.80054,2498.1,2498.0,4.00835]
[1750431980026,0.80063,2497.8,2497.7,1.2718]
[1750431980230,2.00179,2497.6,2496.9,3.2078]
[1750431980430,0.80082,2497.3,2497.2,0.80081]
[1750431980635,1.2679,2497.7,2497.0,2.00224]
[1750431980937,0.80075,2497.5,2497.4,0.80075]
[1750431981138,0.80077,2497.5,2497.4,0.80075]
[1750431981434,0.80079,2497.4,2497.3,0.80078]
[1750431981931,0.80085,2497.2,2497.1,0.80084]
[1750431982139,34.628,2497.2,2496.8,0.6494]
[1750431982335,37.8358,2497.2,2496.9,0.80092]
[1750431982550,0.80092,2496.9,2496.8,0.80094]
[1750431982728,0.80098,2496.8,2496.7,0.80097]
[1750431982928,39.1823,2497.2,2496.6,4.5393]
[1750431983129,3.2078,2497.2,2496.6,4.5393]
[1750431983331,34.625,2497.1,2496.6,4.5393]
[1750431983536,0.80095,2496.9,2496.8,0.80094]
[1750431983735,8.58292,2497.0,2496.7,1.3315]
[1750431983937,7.782,2497.0,2496.9,0.80092]
[1750431984138,8.58289,2497.0,2496.9,0.80092]
[1750431984333,26.84,2497.0,2496.7,1.3315]
[1750431984535,26.84,2497.0,2496.9,0.80092]
[1750431984741,6.51242,2497.8,2496.9,5.21009]
[1750431985034,34.625,2497.7,2497.0,1.3564]
[1750431985244,0.80078,2497.4,2497.0,1.3564]
[1750431985534,26.841,2497.3,2497.2,0.80083]
[1750431985731,26.84,2497.3,2497.2,0.80083]
[1750431985931,0.80085,2497.2,2497.1,0.80086]
[1750431986132,27.64082,2497.3,2497.0,1.3564]
[1750431986332,26.84,2497.3,2497.2,0.80083]
[1750431986735,4.5108,2497.8,2497.2,3.2078]
[1750431986736,3.2078,2497.8,2497.2,3.2078]
[1750431986935,26.837,2497.9,2497.8,0.80062]
[1750431987146,7.783,2498.1,2498.0,0.80057]
[1750431988642,7.783,2498.1,2497.9,1.3007]
[1750431988643,26.835,2498.2,2498.1,0.80054]
[1750431988943,36.37513124,2498.2,2497.9,0.80058]
[1750431989237,0.8006,2497.9,2497.8,3.2078]
[1750431989440,7.783,2497.9,2497.8,3.2078]
[1750431989737,1.3432,2498.1,2498.0,0.80056]
[1750431989738,0.80055,2498.1,2498.0,0.80056]
[1750431990042,34.615,2498.1,2498.0,0.80056]
[1750431990343,34.613,2498.1,2497.9,0.8006]
[1750431990536,34.613,2498.1,2497.8,3.2078]
[1750431990736,0.80059,2498.0,2497.9,0.8006]
[1750431990939,0.8006,2497.9,2497.8,3.2078]
[1750431991134,10.34073124,2497.9,2497.8,3.2078]
[1750431991856,9.54013124,2497.9,2497.8,4.00843]
[1750431992036,0.80052,2498.2,2498.1,0.80051]
[1750431992240,7.783,2498.2,2498.1,0.80051]
[1750431992437,3.2078,2498.4,2497.8,3.2078]
[1750431992743,4.5164,2498.7,2498.5,0.80041]
[1750431992930,36.0737,2498.6,2498.5,0.80041]
[1750431993134,7.783,2498.6,2498.5,0.80041]
[1750431993333,34.604,2498.6,2498.5,0.80041]
[1750431993731,35.40438,2498.6,2498.5,0.80041]
[1750431993934,0.80043,2498.5,2498.4,0.80042]
[1750431994134,34.604,2498.6,2498.3,0.80045]
[1750431994135,0.80044,2498.4,2498.3,0.80045]
[1750431994338,0.80036,2498.7,2498.1,3.2078]
[1750431994536,35.35138,2498.6,2498.5,0.80041]
[1750431994739,35.35139,2498.6,2498.2,1.3044]
[1750431994944,34.551,2498.6,2498.3,1.3044]
[1750431995138,0.80043,2498.5,2498.3,2.10485]
[1750431995338,0.80044,2498.4,2498.3,2.10485]
[1750431995537,0.80042,2498.5,2498.4,0.80041]
[1750431995843,0.80044,2498.4,2498.3,1.3044]
[1750431996042,0.80044,2498.4,2498.3,2.10487]
[1750431996238,34.551,2498.6,2498.3,1.3044]
[1750431996441,0.80044,2498.4,2498.3,2.10485]
[1750431996643,0.80051,2498.2,2498.1,3.2078]
[1750431996842,11.54119124,2498.5,2498.1,3.2078]
[1750431996843,26.812,2498.3,2498.2,0.80051]
[1750431997343,0.80051,2498.2,2498.1,4.00832]
[1750431997745,9.54013124,2498.5,2498.1,3.2078]
[1750431997941,0.80043,2498.5,2498.4,0.80043]
[1750431998146,26.806,2498.6,2498.2,1.3058]
[1750431998339,0.80051,2498.2,2498.1,3.2078]
[1750431998540,0.80051,2498.2,2497.9,0.6651]
[1750431998541,0.80056,2498.1,2497.9,0.6651]
[1750431998746,0.8006,2497.9,2497.8,4.00843]
[1750431998949,27.6046,2497.9,2497.8,3.2078]
[1750431999149,26.804,2497.9,2497.8,4.00843]
[1750431999339,27.6046,2497.9,2497.8,3.2078]
[1750432000145,26.804,2497.9,2497.8,4.00843]
[1750432000342,1.323,2498.4,2497.8,3.2078]
[1750432000541,2.00129,2498.2,2497.8,3.2078]
[1750432000744,0.8006,2497.9,2497.8,3.2078]
[1750432000936,27.5986,2497.9,2497.8,4.00843]
[1750432001139,27.5986,2497.9,2497.8,3.2078]
[1750432001340,0.80069,2497.7,2497.6,0.80069]
[1750432001947,0.8007,2497.6,2497.5,4.00853]
[1750432002251,27.5947,2497.6,2497.5,4.00853]
[1750432002462,26.794,2497.6,2497.5,4.00853]
[1750432003449,27.5947,2497.6,2497.5,4.00853]
[1750432003750,26.794,2497.6,2497.5,4.00853]
[1750432004253,27.5947,2497.6,2497.5,4.00853]
[1750432004438,26.794,2497.6,2497.5,4.00853]
[1750432004642,27.5947,2497.6,2497.5,3.2078]
[1750432004949,26.794,2497.6,2497.5,4.00853]
[1750432005144,9.54013124,2497.8,2497.5,4.00853]
[1750432005145,0.80062,2497.9,2497.8,0.80061]
[1750432005346,34.52,2497.9,2497.8,0.80063]
[1750432005547,35.3206,2497.9,2497.8,0.80063]
[1750432005850,0.80069,2497.7,2497.6,0.80068]
[1750432006244,44.06013124,2497.9,2497.6,0.80068]
[1750432006551,44.06013124,2497.9,2497.5,3.2078]
[1750432006752,0.80068,2497.7,2497.6,0.8007]
[1750432007246,0.8007,2497.6,2497.5,4.00853]
[1750432007544,27.5817,2497.6,2497.5,4.00853]
[1750432007747,27.5817,2497.6,2497.5,3.2078]
[1750432008151,27.5817,2497.6,2497.5,4.00853]
[1750432009357,26.781,2497.6,2497.5,4.00853]
[1750432009944,27.5817,2497.6,2497.5,4.00853]
[1750432010146,0.6863,2498.6,2497.5,17.74793124]
[1750432010348,0.80046,2498.4,2498.3,0.80044]
[1750432011248,2.00119,2498.3,2497.5,3.2078]
[1750432011448,9.54013124,2498.1,2498.0,0.80057]
[1750432011653,35.30353,2498.2,2498.1,0.80054]
[1750432012048,0.80049,2498.3,2498.2,0.80051]
[1750432012259,26.767,2498.2,2498.1,4.00834]
[1750432012454,26.767,2498.2,2498.1,5.37804]
[1750432012952,8.53446,2498.4,2498.3,0.80047]
[1750432013153,26.763,2498.2,2498.1,5.37804]
[1750432014054,27.56351,2498.2,2498.1,3.2078]
[1750432014258,27.56351,2498.2,2498.1,4.00834]
[1750432014449,27.56351,2498.2,2498.1,3.2078]
[1750432014856,37.10364124,2498.2,2498.1,3.2078]
[1750432015056,10.34064124,2498.2,2498.1,3.2078]
[1750432015258,10.34064124,2498.2,2498.0,0.80055]
[1750432015259,0.80054,2498.1,2498.0,0.80055]
[1750432015954,37.09666124,2498.2,2498.1,0.80054]
[1750432016252,7.734,2498.6,2498.5,0.80041]
[1750432016457,35.28638,2498.6,2498.5,0.80041]
[1750432016654,7.734,2498.6,2498.5,0.80041]
[1750432016856,0.80037,2498.7,2498.4,3.2078]
[1750432017155,0.1789,2498.8,2498.7,0.80035]
[1750432017360,26.9279,2498.8,2498.7,4.00815]
[1750432017564,0.1789,2498.8,2498.7,4.00815]
[1750432017758,7.733,2499.2,2499.1,0.80022]
[1750432018057,11.74094,2499.4,2499.3,0.80015]
[1750432018356,0.80013,2499.4,2499.0,4.5008]
[1750432018554,26.745,2499.4,2499.3,0.80014]
[1750432018754,18.75798124,2499.7,2499.5,0.80008]
[1750432019052,27.54409,2499.6,2499.1,2.00055]
[1750432019254,27.54409,2499.6,2499.2,1.293]
[1750432019454,0.80013,2499.4,2499.0,3.8738]
[1750432019658,27.54211,2499.5,2499.3,0.80014]
[1750432019956,18.07317124,2499.7,2499.1,3.29353]
[1750432020156,26.74,2499.6,2499.3,3.2078]
[1750432020358,26.74,2499.6,2499.3,0.80014]
[1750432020560,0.80027,2499.0,2498.7,3.2078]
[1750432020861,0.80031,2498.8,2498.7,3.2078]
[1750432021052,7.732,2498.9,2498.4,3.2078]
[1750432021259,0.80041,2498.5,2498.4,3.2078]
[1750432021557,26.732,2498.5,2498.1,4.00831]
[1750432021755,26.731,2498.4,2498.3,0.80046]
[1750432021962,26.731,2498.4,2498.2,2.1896]
[1750432022157,0.80047,2498.3,2498.2,2.1896]
[1750432022359,26.731,2498.4,2497.9,1.46658]
[1750432022558,0.8006,2497.9,2497.7,1.3891]
[1750432022760,26.728,2497.9,2497.5,3.2078]
[1750432023061,0.8007,2497.6,2497.5,4.5969]
[1750432023363,0.06933781,2497.6,2497.5,5.39763]
[1750432023566,2.00187,2497.5,2496.6,3.2078]
[1750432023859,14.06526017,2496.9,2496.2,3.2078]
[1750432024060,34.457,2496.8,2496.2,4.5477]
[1750432024465,35.7341,2496.8,2496.2,4.5477]
[1750432024670,14.06526017,2496.6,2496.0,1.0]
[1750432024867,0.80117,2496.2,2496.0,1.0]
[1750432025062,14.06526017,2496.6,2496.0,1.0]
[1750432025268,26.721,2496.5,2496.2,3.2078]
[1750432025661,26.721,2496.5,2496.0,1.0]
[1750432025662,0.8011,2496.4,2496.0,1.0]
[1750432025878,26.72,2496.3,2496.1,4.00897]
[1750432026062,26.72,2496.3,2496.1,5.34886]
[1750432026260,26.72,2496.3,2496.1,3.2078]
[1750432026563,26.719,2496.2,2496.1,3.2078]
[1750432026774,26.719,2496.2,2496.1,5.34888]
[1750432027066,26.719,2496.2,2496.1,4.5477]
[1750432027276,26.719,2496.2,2496.0,1.0]
[1750432027466,3.2078,2496.6,2496.0,1.0]
[1750432027669,34.401,2496.5,2496.1,4.5824]
[1750432027867,34.401,2496.4,2496.1,0.80118]
[1750432028062,10.85746017,2496.7,2496.0,1.0]
[1750432028368,0.80109,2496.4,2496.1,1.3746]
[1750432028664,0.80118,2496.1,2496.0,1.0]
[1750432028871,34.4,2496.1,2496.0,1.80121]
[1750432029072,0.80106,2496.5,2496.2,0.80113]
[1750432029267,35.19909,2496.4,2496.1,0.80116]
[1750432029464,35.19909,2496.4,2496.2,0.80113]
[1750432029465,7.682,2496.3,2496.2,0.80113]
[1750432029666,10.85746017,2497.1,2496.8,0.80095]
[1750432029870,3.2078,2497.2,2496.2,5.0]
[1750432029871,34.402,2497.0,2496.4,3.2078]
[1750432030168,34.402,2497.0,2496.8,0.80093]
[1750432030673,0.80087,2497.1,2496.9,0.80091]
[1750432030972,0.80096,2496.8,2496.5,1.2961]
[1750432031272,35.19991,2497.0,2496.8,0.80093]
[1750432031464,35.19991,2497.0,2496.5,1.2961]
[1750432031465,34.399,2497.0,2496.9,0.80092]
[1750432031973,34.399,2497.0,2496.6,2.00256]
[1750432032178,26.715,2496.9,2496.7,1.2961]
[1750432032467,26.715,2496.9,2496.8,0.80096]
[1750432032674,0.80096,2496.8,2496.7,1.2961]
[1750432032972,26.715,2496.9,2496.8,0.80096]
[1750432033169,1.3044,2497.3,2496.6,1.2707]
[1750432033361,18.53946017,2497.1,2496.6,1.2707]
[1750432033565,18.53946017,2497.1,2496.7,0.80096]
[1750432033566,1.3852,2497.0,2496.7,0.80096]
[1750432033778,0.80094,2496.9,2496.8,0.80095]
[1750432033969,2.1861,2497.0,2496.9,0.80092]
[1750432034269,26.711,2497.0,2496.6,3.27322]
[1750432034574,0.80097,2496.8,2496.7,0.80098]
[1750432034780,0.80094,2496.9,2496.8,0.80096]
[1750432035163,26.711,2497.0,2496.9,0.80092]
[1750432035363,46.12,2497.4,2496.8,3.2078]
[1750432035571,0.80065,2497.8,2497.2,2.00207]
[1750432035769,0.80065,2497.8,2497.6,0.80069]
[1750432035770,27.50765,2497.8,2497.6,0.80069]
[1750432035974,7.683,2498.0,2497.5,2.00183]
[1750432035975,26.706,2497.7,2497.5,2.00183]
[1750432036169,26.706,2497.7,2497.6,4.0085]
[1750432036479,0.80057,2498.0,2497.9,0.80058]
[1750432036674,3.2078,2498.3,2497.8,2.00159]
[1750432036976,27.50456,2498.1,2497.7,1.3623]
[1750432037474,34.386,2498.4,2497.9,3.2078]
[1750432037778,16.06606017,2498.8,2497.9,3.2078]
[1750432037779,26.702,2498.7,2498.2,3.2078]
[1750432038071,26.702,2498.7,2498.6,0.80038]
[1750432038371,27.50237,2498.7,2498.3,1.3623]
[1750432038571,26.702,2498.7,2498.6,0.80038]
[1750432038976,26.702,2498.7,2498.2,3.2078]
[1750432039173,0.80045,2498.4,2498.2,4.00829]
[1750432039370,27.49445,2498.4,2498.2,0.80049]
[1750432039578,27.49445,2498.4,2498.3,0.80047]
[1750432039872,27.49444,2498.4,2498.2,0.80048]
[1750432040073,0.80048,2498.3,2498.2,0.8005]
[1750432040294,0.80048,2498.3,2497.9,5.154]
[1750432040295,26.694,2498.4,2497.9,4.4723]
[1750432040470,26.694,2498.4,2498.3,0.80047]
[1750432040669,3.27713781,2498.7,2498.5,0.80038]
[1750432040970,0.06933781,2498.7,2498.6,0.80038]
[1750432041169,0.06933781,2498.7,2498.6,2.06488]
[1750432041574,0.06933781,2498.7,2498.1,5.88828]
[1750432041776,0.06933781,2498.7,2498.6,0.80038]
[1750432041979,0.80041,2498.6,2498.4,0.80042]
[1750432042574,26.69,2498.8,2498.3,1.2645]
[1750432042768,0.80051,2498.2,2498.1,3.2078]
[1750432043277,26.682,2498.5,2498.1,3.2078]
[1750432043278,27.48243,2498.5,2498.1,3.2078]
[1750432043472,0.80044,2498.4,2498.2,0.80049]
[1750432043672,0.80047,2498.3,2498.2,0.80049]
[1750432043879,0.80051,2498.2,2498.1,4.00833]
[1750432044380,0.80051,2498.2,2498.1,4.00831]
[1750432044876,0.80046,2498.4,2498.1,3.2078]
[1750432045067,26.682,2498.5,2498.1,3.2078]
[1750432045273,0.06933781,2498.7,2498.1,3.2078]
[1750432045478,0.06933781,2498.7,2498.2,3.35067]
[1750432045780,0.06933781,2498.7,2498.1,3.2078]
[1750432045781,0.80047,2498.4,2498.1,3.2078]
[1750432045973,0.06933781,2498.7,2498.1,3.2078]
[1750432046279,0.06933781,2498.7,2498.6,0.80038]
[1750432046671,27.47117,2499.3,2499.1,0.8002]
[1750432046873,0.80019,2499.2,2498.8,5.20857]
[1750432047182,2.00004,2499.8,2499.0,2.00063]
[1750432047183,3.2078,2499.6,2499.0,2.00063]
[1750432047478,27.46912,2499.5,2499.3,0.80015]
[1750432047675,26.669,2499.5,2499.2,0.80016]
[1750432047884,0.80018,2499.3,2499.1,0.80021]
[1750432048179,29.8708,2499.6,2499.1,3.2078]
[1750432048574,0.80014,2499.4,2499.3,0.80015]
[1750432048774,0.80019,2499.2,2499.1,3.2078]
[1750432049079,0.80018,2499.3,2499.1,3.2078]
[1750432049282,3.2078,2499.6,2499.4,0.80011]
[1750432049592,10.85746017,2499.5,2499.1,3.2078]
[1750432049780,0.80016,2499.3,2499.1,4.008]
[1750432049976,0.80019,2499.2,2499.1,3.2078]
[1750432051370,27.45219,2499.2,2499.1,3.2078]
[1750432051680,26.652,2499.2,2499.1,4.00802]
[1750432051877,27.45219,2499.2,2499.1,3.2078]
[1750432052780,27.45219,2499.2,2499.1,4.00802]
[1750432052975,27.45219,2499.2,2499.1,3.2078]
[1750432053172,27.45219,2499.2,2499.0,0.80023]
[1750432053173,0.80022,2499.1,2499.0,0.80024]
[1750432053477,0.80031,2498.8,2498.7,4.00811]
[1750432053677,0.80031,2498.8,2498.7,3.2078]
[1750432054183,2.00071,2498.9,2498.4,3.2078]
[1750432054375,0.80041,2498.5,2498.4,3.2078]
[1750432054573,0.80036,2498.7,2498.4,3.2078]
[1750432054777,28.71214781,2498.8,2498.4,3.2078]
[1750432054975,0.80041,2498.5,2498.4,4.00821]
[1750432055178,0.8004,2498.6,2498.5,0.80039]
[1750432055482,27.51166781,2498.8,2498.7,0.80035]
[1750432055683,0.80038,2498.6,2498.5,2.09689]
[1750432055879,0.80041,2498.5,2498.4,3.2078]
[1750432056179,26.71133781,2498.8,2498.1,3.2078]
[1750432056383,26.71133781,2498.8,2497.8,3.2078]
[1750432056384,0.8006,2497.9,2497.8,3.2078]
[1750432056578,26.636,2498.1,2497.9,0.80058]
[1750432056781,0.8006,2497.9,2497.8,3.2078]
[1750432056976,0.8007,2497.6,2497.5,4.00852]
[1750432057179,0.8006,2498.0,2497.5,3.2078]
[1750432057377,26.636,2498.1,2497.5,3.2078]
[1750432057378,26.636,2498.1,2497.6,1.3533]
[1750432057572,3.2078,2498.4,2498.0,0.80057]
[1750432057783,34.262,2498.3,2497.9,0.80057]
[1750432057985,34.262,2498.3,2497.8,3.2078]
[1750432057986,0.8006,2497.9,2497.8,3.2078]
[1750432058176,34.262,2498.3,2497.8,3.2078]
[1750432058475,0.8006,2497.9,2497.8,4.00841]
[1750432058783,0.80059,2498.0,2497.8,4.00841]
[1750432058983,45.11946017,2498.3,2497.8,3.2078]
[1750432059182,0.8006,2497.9,2497.8,3.2078]
[1750432059682,27.4276,2497.9,2497.8,3.2078]
[1750432060291,35.0566,2497.9,2497.8,3.2078]
[1750432060487,35.6248,2497.9,2497.4,3.2078]
[1750432060688,35.6248,2497.9,2497.5,0.80071]
[1750432060888,35.6248,2497.9,2497.8,0.80063]
[1750432060889,0.8006,2497.9,2497.8,0.80063]
[1750432061284,0.80059,2498.0,2497.9,0.80059]
[1750432061485,0.80062,2497.9,2497.8,0.80063]
[1750432061687,0.80065,2497.8,2497.7,0.80065]
[1750432061990,5.20898,2498.4,2497.6,3.32632]
[1750432062285,0.80056,2498.1,2498.0,0.80057]
[1750432062690,0.80062,2497.9,2497.8,0.80062]
[1750432062887,0.80058,2498.0,2497.9,0.80059]
[1750432063088,2.16936,2498.1,2498.0,0.80057]
[1750432063288,0.80056,2498.1,2498.0,0.80057]
[1750432063489,27.42452,2498.2,2498.1,0.80054]
[1750432063688,26.624,2498.2,2497.8,3.2078]
[1750432063890,0.8006,2497.9,2497.8,3.2078]
[1750432064093,0.80059,2498.0,2497.9,0.80059]
[1750432064293,0.80058,2498.0,2497.8,3.2078]
[1750432064492,0.80058,2498.0,2497.9,0.8006]
[1750432064795,0.80056,2498.1,2498.0,0.80056]
[1750432064997,27.42451,2498.2,2498.1,0.80054]
[1750432065195,0.80054,2498.1,2498.0,0.80055]
[1750432065589,7.629,2498.4,2497.9,2.00152]
[1750432065796,19.15976017,2498.7,2498.1,5.20914]
[1750432066088,19.15976017,2498.7,2498.5,0.80038]
[1750432066089,0.80039,2498.6,2498.5,0.80038]
[1750432066294,0.80051,2498.3,2498.2,0.8005]
[1750432066488,0.80057,2498.1,2498.0,0.80056]
[1750432066690,0.80053,2498.2,2497.8,7.12998]
[1750432066889,0.80055,2498.1,2498.0,0.80054]
[1750432067190,0.80055,2498.1,2497.8,7.12998]
[1750432067191,26.615,2498.2,2497.8,5.1284]
[1750432067395,2.00143,2498.0,2497.4,3.2078]
[1750432067593,0.80073,2497.6,2497.5,0.80071]
[1750432067986,26.613,2497.8,2497.6,0.80069]
[1750432067987,0.80069,2497.7,2497.6,0.80069]
[1750432068188,0.80073,2497.6,2497.5,0.80072]
[1750432068692,0.80071,2497.6,2497.5,0.80071]
[1750432068888,0.80073,2497.5,2497.4,0.80076]
[1750432069096,0.80072,2497.6,2497.5,0.80071]
[1750432069297,0.80074,2497.5,2497.4,0.80073]
[1750432069589,45.10046017,2497.8,2497.6,0.80067]
[1750432069590,0.80069,2497.7,2497.6,0.80067]
[1750432069794,34.243,2497.8,2497.2,3.27905]
[1750432069998,0.80072,2497.6,2497.5,0.80071]
[1750432070198,0.80075,2497.5,2497.4,0.80074]
[1750432070493,0.80076,2497.5,2497.4,0.80076]
[1750432070889,37.64474781,2497.8,2497.2,1.277]
[1750432071088,37.64474781,2497.8,2497.3,2.002]
[1750432071089,0.06933781,2497.8,2497.3,2.002]
[1750432071289,0.80068,2497.7,2497.6,0.80068]
[1750432071885,0.80072,2497.6,2497.5,0.80071]
[1750432072998,0.80068,2497.7,2497.6,0.80067]
[1750432073199,0.80068,2497.7,2497.6,0.80069]
[1750432074197,27.47599781,2497.8,2497.7,0.80067]
[1750432074393,0.06933781,2497.8,2497.7,0.80067]
[1750432074596,0.06933781,2497.8,2497.7,4.00847]
[1750432074892,0.06933781,2497.8,2497.7,0.80067]
[1750432075096,0.06933781,2497.8,2497.7,4.00847]
[1750432076002,0.86997781,2497.8,2497.7,4.00847]
[1750432076196,0.06933781,2497.8,2497.7,0.80067]
[1750432076597,0.06933781,2497.8,2497.7,4.00847]
[1750432077101,0.06933781,2497.8,2497.7,0.80067]
[1750432077596,0.06933781,2497.8,2497.7,4.00847]
[1750432078798,0.86996781,2497.8,2497.7,3.2078]
[1750432078994,0.06933781,2497.8,2497.5,0.80073]
[1750432079194,0.8007,2497.6,2497.5,0.80073]
[1750432079404,0.80073,2497.5,2497.4,3.2078]
[1750432079596,0.80076,2497.4,2497.3,0.80078]
[1750432079998,0.8008,2497.3,2497.2,2.12241]
[1750432080304,7.631,2497.3,2496.5,3.2078]
[1750432080502,9.54234868,2496.6,2496.2,3.2078]
[1750432080699,0.80118,2496.1,2495.8,3.2078]
[1750432080900,0.80118,2496.1,2496.0,1.80121]
[1750432081099,0.80116,2496.2,2496.0,1.80119]
[1750432081301,27.38418,2496.1,2496.0,1.0]
[1750432082003,10.88112148,2495.8,2495.5,3.2078]
[1750432082200,3.2078,2495.9,2495.5,3.2078]
[1750432082516,0.80134,2495.6,2495.5,3.2078]
[1750432083210,20.86543,2496.0,2495.5,3.2078]
[1750432083507,2.0027,2496.5,2496.2,0.80112]
[1750432083508,0.80107,2496.5,2496.2,0.80112]